bitfinex-derivatives/quotes_BTCF0:USTF0_20241231
["timestamp","ask_amount","ask_price","bid_price","bid_amount"]
[1735616760613,0.3608,92469.0,92459.0,0.3608]
[1735616760816,0.3608,92469.0,92459.0,0.47332493]
[1735616761019,0.33576468,92471.0,92459.0,0.47332493]
[1735616761314,0.11252493,92469.0,92459.0,0.3608]
[1735616762315,0.11252493,92469.0,92459.0,0.3408]
[1735616762818,0.11752493,92469.0,92459.0,0.3408]
[1735616764316,0.12052493,92469.0,92459.0,0.3408]
[1735616765114,0.3608,92460.0,92450.0,6.514e-05]
[1735616765317,0.0622,92459.0,92450.0,6.514e-05]
[1735616766420,0.3608,92451.0,92450.0,6.514e-05]
[1735616767725,0.3618,92451.0,92450.0,6.514e-05]
[1735616768722,0.3628,92451.0,92450.0,6.514e-05]
[1735616769026,0.002,92451.0,92450.0,6.514e-05]
[1735616769526,0.0328,92451.0,92450.0,6.514e-05]
[1735616770518,0.0328,92451.0,92428.0,1.5]
[1735616770723,0.3608,92442.0,92428.0,1.5]
[1735616771726,0.11252493,92440.0,92428.0,1.512]
[1735616772430,0.11252493,92450.0,92438.0,0.3608]
[1735616772727,0.09976878,92451.0,92439.0,0.0309]
[1735616773730,0.3608,92463.0,92449.0,0.054179]
[1735616773919,0.3608,92463.0,92450.0,0.0606]
[1735616774123,0.3608,92463.0,92450.0,0.17312493]
[1735616774426,0.3608,92463.0,92451.0,0.054177]
[1735616774626,0.3608,92463.0,92452.0,0.054177]
[1735616775026,0.3608,92463.0,92453.0,1.5]
[1735616775228,0.3618,92463.0,92453.0,1.5]
[1735616776135,0.3628,92463.0,92453.0,1.5]
[1735616776635,0.3638,92463.0,92453.0,1.5]
[1735616777334,0.3638,92463.0,92453.0,1.554177]
[1735616777835,0.3648,92463.0,92453.0,1.554177]
[1735616778331,0.3648,92463.0,92453.0,1.5]
[1735616778538,0.004,92463.0,92461.0,0.054172]
[1735616778739,0.004,92463.0,92462.0,0.0313]
[1735616779037,0.00162287,92470.0,92462.0,0.0313]
[1735616779343,0.00162287,92470.0,92464.0,0.05417]
[1735616779529,0.00162287,92470.0,92462.0,0.0313]
[1735616780036,0.003,92463.0,92462.0,0.0313]
[1735616780535,0.00162287,92470.0,92462.0,0.0313]
[1735616780731,0.00462287,92470.0,92462.0,0.0313]
[1735616781132,0.003,92463.0,92462.0,0.0313]
[1735616782236,0.003,92463.0,92462.0,0.0113]
[1735616785330,0.003,92463.0,92460.0,0.3608]
[1735616787238,0.003,92463.0,92460.0,0.3408]
[1735616787636,0.006,92463.0,92460.0,0.3408]
[1735616788938,0.006,92463.0,92457.0,0.054174]
[1735616790031,0.003,92463.0,92457.0,0.054174]
[1735616790341,0.005,92463.0,92457.0,0.054174]
[1735616791137,0.005,92463.0,92459.0,0.3608]
[1735616792333,0.005,92463.0,92459.0,0.3408]
[1735616793033,0.003,92463.0,92459.0,0.3408]
[1735616793237,0.005,92463.0,92459.0,0.3408]
[1735616793539,0.002,92463.0,92459.0,0.3408]
[1735616793733,0.005,92463.0,92459.0,0.3408]
[1735616797345,0.005,92463.0,92459.0,0.3208]
[1735616799545,0.005,92463.0,92460.0,1.5]
[1735616800639,0.3608,92469.0,92460.0,1.5]
[1735616800841,0.006,92463.0,92460.0,1.5]
[1735616801743,0.003,92463.0,92460.0,1.5]
[1735616802244,0.003,92463.0,92460.0,1.48]
[1735616802446,0.3668,92469.0,92460.0,1.48]
[1735616803140,0.3638,92469.0,92460.0,1.48]
[1735616803345,0.003,92463.0,92460.0,1.48]
[1735616803549,0.006,92463.0,92460.0,1.48]
[1735616803936,0.003,92463.0,92460.0,1.48]
[1735616804137,0.3668,92469.0,92460.0,1.48]
[1735616804540,0.3638,92469.0,92460.0,1.48]
[1735616804740,0.003,92463.0,92460.0,1.48]
[1735616805847,0.006,92463.0,92460.0,1.48]
[1735616806353,0.003,92463.0,92460.0,1.48]
[1735616806947,0.006,92463.0,92460.0,1.48]
[1735616807253,0.006,92463.0,92460.0,1.46]
[1735616807743,0.01458072,92471.0,92470.0,0.054167]
[1735616808052,0.09977169,92479.0,92470.0,0.054167]
[1735616808251,0.09977169,92479.0,92471.0,1.5636]
[1735616808551,0.01494247,92479.0,92471.0,1.5636]
[1735616808748,0.12064335,92487.0,92471.0,1.5636]
[1735616809149,0.37543593,92480.0,92471.0,1.5636]
[1735616809349,0.37543593,92480.0,92474.0,0.054164]
[1735616809851,0.005,92479.0,92474.0,0.054164]
[1735616810354,0.005,92479.0,92471.0,1.56416]
[1735616810552,0.37543593,92480.0,92471.0,1.55677893]
[1735616810754,0.38043593,92480.0,92471.0,1.55677893]
[1735616810940,0.38043593,92480.0,92472.0,0.0332]
[1735616811144,0.38043593,92480.0,92474.0,0.001]
[1735616811556,0.38043593,92480.0,92476.0,0.054163]
[1735616812250,0.002,92479.0,92476.0,0.034163]
[1735616813256,0.37743593,92480.0,92476.0,0.034163]
[1735616813559,0.054163,92477.0,92474.0,0.001]
[1735616814059,0.054163,92477.0,92476.0,0.001]
[1735616814751,0.054163,92477.0,92474.0,0.001]
[1735616815350,0.054163,92477.0,92476.0,0.001]
[1735616815548,0.056163,92477.0,92476.0,0.001]
[1735616817155,0.056163,92477.0,92474.0,0.001]
[1735616817357,0.056163,92477.0,92472.0,0.0142]
[1735616818060,0.056163,92477.0,92476.0,0.001]
[1735616818561,0.056163,92477.0,92472.0,0.0152]
[1735616819459,0.054163,92477.0,92472.0,0.0152]
[1735616819651,0.056163,92477.0,92472.0,0.0152]
[1735616820449,0.056163,92477.0,92473.0,0.3608]
[1735616820450,0.002,92477.0,92473.0,0.3608]
[1735616820655,0.002,92477.0,92475.0,0.054163]
[1735616820851,0.12064335,92487.0,92476.0,0.001]
[1735616821046,0.11442386,92487.0,92477.0,0.11252493]
[1735616821251,0.11442386,92487.0,92486.0,1.5]
[1735616821756,0.01465217,92487.0,92486.0,1.5]
[1735616821950,0.054155,92491.0,92486.0,1.5]
[1735616822263,0.002,92487.0,92486.0,1.48]
[1735616822864,0.002,92487.0,92486.0,1.481]
[1735616823661,0.054155,92491.0,92486.0,1.481]
[1735616823662,0.054155,92491.0,92486.0,1.482]
[1735616823863,0.06925272,92491.0,92486.0,1.482]
[1735616824560,0.01509772,92491.0,92486.0,1.482]
[1735616824768,0.054157,92488.0,92486.0,0.002]
[1735616826562,0.054165,92474.0,92453.0,0.095]
[1735616826759,0.11252493,92471.0,92453.0,0.095]
[1735616827262,0.054171,92463.0,92462.0,1.5]
[1735616827669,0.3608,92463.0,92444.0,0.3608]
[1735616827970,0.3608,92463.0,92438.0,0.054185]
[1735616827971,0.11252493,92454.0,92442.0,0.11797181]
[1735616828258,0.054181,92446.0,92445.0,1.5]
[1735616830161,0.054181,92446.0,92445.0,1.501]
[1735616830963,0.056181,92446.0,92445.0,1.5]
[1735616832362,0.056181,92446.0,92445.0,1.48]
[1735616833766,0.055181,92446.0,92445.0,1.48]
[1735616836067,0.001,92446.0,92445.0,1.48]
[1735616837262,0.054181,92447.0,92445.0,1.48]
[1735616837456,0.054181,92447.0,92445.0,1.482]
[1735616838161,0.054181,92447.0,92445.0,1.46]
[1735616838865,0.001,92446.0,92445.0,1.46]
[1735616839668,0.055181,92447.0,92445.0,1.46]
[1735616840366,0.054181,92447.0,92445.0,1.46]
[1735616840562,0.001,92446.0,92445.0,1.46]
[1735616842066,0.055181,92447.0,92445.0,1.46]
[1735616842265,0.055181,92447.0,92445.0,1.44]
[1735616842771,0.054181,92447.0,92445.0,1.44]
[1735616842965,0.001,92446.0,92445.0,1.44]
[1735616843562,0.054181,92447.0,92445.0,1.44]
[1735616843762,0.055181,92447.0,92445.0,1.44]
[1735616845175,0.054181,92447.0,92445.0,1.44]
[1735616845465,0.001,92446.0,92445.0,1.44]
[1735616846066,0.055181,92447.0,92445.0,1.44]
[1735616846873,0.001,92446.0,92445.0,1.44]
[1735616847272,0.001,92446.0,92445.0,1.42]
[1735616848369,0.054181,92447.0,92445.0,1.42]
[1735616848571,0.055181,92447.0,92445.0,1.42]
[1735616849272,0.001,92446.0,92445.0,1.42]
[1735616849978,0.054181,92447.0,92445.0,1.42]
[1735616850181,0.055181,92447.0,92445.0,1.42]
[1735616851670,0.001,92446.0,92445.0,1.42]
[1735616852275,0.001,92446.0,92445.0,1.4]
[1735616852463,0.054181,92447.0,92445.0,1.4]
[1735616852666,0.055181,92447.0,92445.0,1.4]
[1735616853479,0.001,92446.0,92445.0,1.4]
[1735616853981,0.001,92446.0,92445.0,1.7608]
[1735616854179,0.054172,92461.0,92456.0,0.054175]
[1735616854476,0.11297437,92462.0,92460.0,0.054172]
[1735616854677,0.09978875,92462.0,92460.0,0.054172]
[1735616854870,0.11660231,92479.0,92478.0,0.054162]
[1735616855068,0.13005326,92479.0,92478.0,0.414962]
[1735616855264,0.01345095,92479.0,92478.0,1.914962]
[1735616855476,0.00162254,92480.0,92478.0,1.914962]
[1735616855678,0.00162254,92480.0,92479.0,0.0318]
[1735616856881,0.06940959,92480.0,92478.0,0.00064]
[1735616857078,0.054165,92474.0,92469.0,0.3608]
[1735616857383,0.054165,92474.0,92469.0,0.3408]
[1735616857571,0.054165,92473.0,92469.0,0.3408]
[1735616858284,0.054166,92471.0,92469.0,0.3418]
[1735616859474,0.054166,92471.0,92469.0,0.001]
[1735616861282,0.054166,92471.0,92469.0,0.3618]
[1735616862283,0.054166,92471.0,92463.0,0.05417]
[1735616862484,0.054166,92471.0,92467.0,0.3608]
[1735616862981,0.054166,92470.0,92467.0,0.3608]
[1735616863582,0.36242254,92480.0,92467.0,0.3618]
[1735616863583,0.00162254,92480.0,92467.0,0.3618]
[1735616863781,0.054157,92485.0,92477.0,0.3608]
[1735616863978,0.054157,92485.0,92478.0,0.0624]
[1735616864182,0.033,92497.0,92496.0,0.05415]
[1735616864379,0.001,92512.0,92496.0,0.3608]
[1735616864574,0.05576091,92516.0,92508.0,0.054143]
[1735616865179,0.00162191,92516.0,92505.0,0.3608]
[1735616865381,0.00162191,92516.0,92515.0,0.3608]
[1735616865682,0.00162191,92516.0,92515.0,1.8608]
[1735616867087,0.00162191,92516.0,92515.0,1.8618]
[1735616867088,0.00362191,92516.0,92515.0,1.8618]
[1735616867286,0.00362191,92516.0,92515.0,1.8418]
[1735616868081,0.00362191,92516.0,92515.0,1.895939]
[1735616868490,0.00362191,92516.0,92515.0,1.555139]
[1735616869687,0.00362191,92516.0,92515.0,1.915939]
[1735616869889,0.05413,92531.0,92518.0,0.054137]
[1735616870082,0.05413,92531.0,92521.0,0.11252493]
[1735616871089,0.0304,92538.0,92520.0,0.16666093]
[1735616871288,0.054132,92529.0,92528.0,0.11252493]
[1735616871480,0.054132,92529.0,92520.0,0.054136]
[1735616871675,0.054132,92528.0,92519.0,0.11252493]
[1735616872291,0.054133,92527.0,92518.0,0.16766193]
[1735616873580,0.054133,92527.0,92518.0,0.055137]
[1735616873981,0.054133,92527.0,92521.0,0.001]
[1735616874491,0.054133,92527.0,92518.0,0.054137]
[1735616874492,0.054134,92525.0,92518.0,0.001]
[1735616874788,0.054134,92524.0,92518.0,0.001]
[1735616877291,0.054134,92524.0,92521.0,0.001]
[1735616877988,0.054134,92524.0,92515.0,0.3408]
[1735616878192,0.054134,92524.0,92518.0,0.001]
[1735616878885,0.06747727,92524.0,92521.0,0.001]
[1735616881195,0.06747727,92524.0,92518.0,0.001]
[1735616881387,0.3608,92520.0,92518.0,0.001]
[1735616881784,0.3608,92520.0,92517.0,0.054138]
[1735616882279,0.3608,92520.0,92517.0,0.034138]
[1735616882479,0.3608,92520.0,92518.0,0.001]
[1735616883095,0.3608,92520.0,92517.0,0.035138]
[1735616883298,0.054135,92523.0,92517.0,0.035138]
[1735616884696,0.054135,92523.0,92518.0,0.001]
[1735616884898,0.054135,92523.0,92519.0,0.054137]
[1735616886698,0.3608,92526.0,92525.0,0.054134]
[1735616887203,0.084526,92538.0,92531.0,0.03413]
[1735616887494,0.084526,92538.0,92528.0,0.11252493]
[1735616887797,0.0304,92538.0,92536.0,0.054127]
[1735616888182,0.04370445,92538.0,92536.0,0.054127]
[1735616888487,0.0304,92538.0,92536.0,0.054127]
[1735616889098,0.0304,92538.0,92536.0,0.055127]
[1735616892290,0.0304,92538.0,92536.0,0.037127]
[1735616892691,0.0304,92538.0,92536.0,0.035127]
[1735616894495,0.0304,92538.0,92536.0,0.034127]
[1735616895200,0.0304,92538.0,92528.0,0.054132]
[1735616895402,0.0304,92538.0,92527.0,0.3608]
[1735616895705,0.054131,92529.0,92527.0,0.3608]
[1735616896493,0.0307,92528.0,92527.0,0.3608]
[1735616896694,0.0634,92528.0,92527.0,0.3608]
[1735616897102,0.0634,92528.0,92521.0,1.50056]
[1735616897306,0.414935,92522.0,92521.0,1.5]
[1735616897496,0.054138,92518.0,92517.0,0.00162118]
[1735616898504,0.3608,92522.0,92501.0,1.5]
[1735616898812,0.054145,92506.0,92501.0,1.5]
[1735616899508,0.3608,92510.0,92501.0,1.5]
[1735616899699,0.054146,92503.0,92501.0,1.5]
[1735616900893,0.054146,92503.0,92501.0,1.513]
[1735616901406,0.054146,92503.0,92501.0,1.504]
[1735616901602,0.054146,92503.0,92501.0,1.513]
[1735616903109,0.06677933,92503.0,92501.0,1.513]
[1735616905513,0.06677933,92503.0,92501.0,0.013]
[1735616906908,0.3608,92502.0,92501.0,0.013]
[1735616908105,0.414947,92502.0,92501.0,0.013]
[1735616909215,0.054156,92487.0,92485.0,0.3608]
[1735616909615,0.054156,92487.0,92485.0,1.8608]
[1735616909816,0.054156,92487.0,92485.0,0.3608]
[1735616910017,0.054156,92487.0,92481.0,0.031]
[1735616910411,0.3608,92493.0,92481.0,0.031]
[1735616910621,0.414953,92493.0,92481.0,0.031]
[1735616910811,0.054153,92493.0,92481.0,0.031]
[1735616911021,0.054153,92493.0,92481.0,0.085159]
[1735616911813,0.054148,92500.0,92492.0,0.054153]
[1735616912017,0.05415,92497.0,92490.0,0.3608]
[1735616912219,0.05415,92497.0,92486.0,0.054156]
[1735616912521,0.05415,92497.0,92485.0,0.3408]
[1735616912522,0.3608,92504.0,92487.0,0.11252493]
[1735616912822,0.09973953,92511.0,92496.0,0.3608]
[1735616913122,0.09973953,92511.0,92509.0,0.054143]
[1735616913313,0.09973953,92511.0,92510.0,0.0319]
[1735616913714,0.054133,92527.0,92517.0,0.054138]
[1735616913914,0.054133,92527.0,92518.0,1.5]
[1735616914916,0.01389606,92525.0,92518.0,1.5]
[1735616915131,0.00162173,92525.0,92518.0,1.5]
[1735616915324,0.00162173,92525.0,92518.0,1.501]
[1735616916013,0.00462173,92525.0,92518.0,1.501]
[1735616917323,0.00462173,92525.0,92518.0,1.481]
[1735616917813,0.01682939,92525.0,92518.0,1.481]
[1735616918013,0.00462173,92525.0,92518.0,1.481]
[1735616918223,0.00162173,92525.0,92518.0,1.481]
[1735616918425,0.00162173,92525.0,92518.0,1.48]
[1735616919015,0.00162173,92525.0,92519.0,0.054137]
[1735616919222,0.00162173,92525.0,92520.0,0.054136]
[1735616920021,0.00162173,92525.0,92523.0,0.414934]
[1735616920328,0.00104001,92531.0,92523.0,0.414934]
[1735616920522,0.054127,92537.0,92523.0,0.414934]
[1735616921118,0.054127,92537.0,92535.0,0.3608]
[1735616921629,0.01237537,92537.0,92535.0,0.3608]
[1735616921829,0.054123,92544.0,92535.0,0.3608]
[1735616922129,0.001,92537.0,92535.0,0.3608]
[1735616922327,0.001,92537.0,92535.0,0.3408]
[1735616922926,0.054123,92543.0,92535.0,0.3408]
[1735616924015,0.054124,92542.0,92535.0,0.3408]
[1735616924422,0.054126,92539.0,92535.0,0.3408]
[1735616924827,0.003,92537.0,92535.0,0.3408]
[1735616925031,0.054127,92536.0,92535.0,0.3408]
[1735616925227,0.054127,92536.0,92535.0,0.3418]
[1735616926625,0.057127,92536.0,92535.0,0.3418]
[1735616926817,0.003,92536.0,92535.0,0.3408]
[1735616927220,0.003,92536.0,92535.0,0.3208]
[1735616927423,0.003,92536.0,92535.0,1.8208]
[1735616928029,0.3608,92542.0,92535.0,1.8208]
[1735616928229,0.09969141,92553.0,92535.0,1.8208]
[1735616928423,0.11229003,92553.0,92548.0,0.05412]
[1735616928823,0.09969141,92553.0,92549.0,0.054119]
[1735616929023,0.09969141,92553.0,92552.0,0.3608]
[1735616929734,0.10169141,92553.0,92552.0,1.8608]
[1735616930231,0.002,92553.0,92552.0,1.8608]
[1735616931527,0.003,92553.0,92552.0,1.8608]
[1735616932123,0.09969141,92570.0,92569.0,0.054108]
[1735616932324,0.09969141,92570.0,92569.0,0.034108]
[1735616932840,0.09969141,92570.0,92569.0,0.066308]
[1735616933539,0.01250726,92577.0,92570.0,0.054107]
[1735616933729,0.054103,92578.0,92570.0,0.054107]
[1735616933730,0.054103,92578.0,92571.0,1.5]
[1735616934735,0.054103,92578.0,92571.0,1.501]
[1735616935244,0.00162063,92582.0,92571.0,1.555106]
[1735616935432,0.00162063,92582.0,92573.0,0.054105]
[1735616935935,0.00162063,92582.0,92571.0,1.50156]
[1735616936131,0.054098,92585.0,92576.0,0.054103]
[1735616936545,0.0622,92589.0,92576.0,0.3608]
[1735616936838,0.11984517,92600.0,92579.0,0.22504986]
[1735616937137,0.01225382,92599.0,92594.0,0.054093]
[1735616937440,0.1,92600.0,92594.0,0.034093]
[1735616937933,0.1,92600.0,92592.0,0.3608]
[1735616938332,0.0319,92599.0,92594.0,0.001]
[1735616938738,0.3608,92595.0,92579.0,0.001]
[1735616939039,0.054096,92589.0,92579.0,0.001]
[1735616939642,0.054099,92585.0,92579.0,0.001]
[1735616939840,0.0308,92584.0,92579.0,0.001]
[1735616940039,0.0541,92582.0,92579.0,0.001]
[1735616940242,0.0541,92582.0,92570.0,0.3608]
[1735616940545,0.11252493,92580.0,92570.0,0.3608]
[1735616940740,0.054106,92573.0,92570.0,0.3608]
[1735616942038,0.0316,92572.0,92570.0,0.3608]
[1735616942241,0.0316,92572.0,92570.0,0.3408]
[1735616943340,0.056102,92580.0,92570.0,0.3408]
[1735616943535,0.056102,92580.0,92578.0,0.3608]
[1735616944241,0.002,92580.0,92578.0,0.3608]
[1735616944439,0.002,92580.0,92578.0,0.414902]
[1735616944644,0.0316,92588.0,92581.0,0.0541]
[1735616946253,0.0316,92588.0,92578.0,0.47332493]
[1735616946254,0.085697,92588.0,92578.0,0.47432493]
[1735616946550,0.085697,92588.0,92578.0,0.3618]
[1735616946845,0.085697,92588.0,92581.0,0.001]
[1735616947052,0.0541,92583.0,92581.0,0.001]
[1735616947246,0.0541,92583.0,92578.0,0.3608]
[1735616947247,0.054102,92580.0,92578.0,0.3418]
[1735616947444,0.054102,92580.0,92578.0,0.3428]
[1735616948045,0.054102,92580.0,92578.0,0.001]
[1735616948439,0.3608,92581.0,92554.0,0.3608]
[1735616948643,0.3608,92561.0,92552.0,0.3608]
[1735616949046,0.3608,92561.0,92556.0,1.5]
[1735616950350,0.3618,92561.0,92556.0,1.5]
[1735616951047,0.3628,92561.0,92556.0,1.5]
[1735616951450,0.3638,92561.0,92556.0,1.5]
[1735616952348,0.3638,92561.0,92556.0,1.48]
[1735616953446,0.003,92561.0,92560.0,0.3608]
[1735616954057,0.3608,92579.0,92560.0,1.8608]
[1735616954357,0.0309,92588.0,92560.0,1.8608]
[1735616954358,0.0309,92588.0,92573.0,0.3608]
[1735616954652,0.0309,92588.0,92582.0,0.0541]
[1735616954857,0.054092,92597.0,92582.0,0.3608]
[1735616955056,0.1,92600.0,92590.0,0.3608]
[1735616955243,0.15409,92600.0,92591.0,0.054094]
[1735616955642,0.1,92600.0,92591.0,0.054094]
[1735616955846,0.1,92600.0,92590.0,0.3608]
[1735616956043,0.054098,92586.0,92582.0,0.3608]
[1735616956659,0.054098,92586.0,92577.0,0.054103]
[1735616957057,0.0322,92590.0,92577.0,0.054103]
[1735616957357,0.0322,92590.0,92579.0,0.3608]
[1735616958153,0.0322,92590.0,92579.0,0.3408]
[1735616958760,0.0322,92590.0,92582.0,0.001]
[1735616958953,0.0322,92590.0,92582.0,0.0551]
[1735616959159,0.0322,92590.0,92582.0,0.0541]
[1735616959652,0.0322,92590.0,92583.0,1.5]
[1735616960062,0.11194606,92600.0,92589.0,0.3608]
[1735616960362,0.11194606,92600.0,92593.0,0.054093]
[1735616962265,0.11194606,92600.0,92593.0,0.034093]
[1735616962562,0.1,92600.0,92593.0,0.001]
[1735616963466,0.1,92600.0,92598.0,0.054091]
[1735616964263,0.1,92600.0,92593.0,0.001]
[1735616964264,0.05409,92599.0,92593.0,0.001]
[1735616964563,0.1,92600.0,92596.0,0.054092]
[1735616964955,0.1,92600.0,92598.0,0.001]
[1735616965465,0.1,92600.0,92596.0,0.054092]
[1735616966167,0.1,92600.0,92598.0,0.001]
[1735616966459,0.05409,92599.0,92598.0,0.001]
[1735616967266,0.1,92600.0,92589.0,0.09352493]
[1735616967267,0.054093,92595.0,92589.0,0.09352493]
[1735616967767,0.1,92600.0,92598.0,0.054091]
[1735616968165,0.1,92600.0,92599.0,1.532]
[1735616969672,0.1,92600.0,92599.0,1.53192747]
[1735616970067,0.00544357,92611.0,92599.0,1.53192747]
[1735616970263,0.00544357,92611.0,92600.0,0.11252493]
[1735616970465,0.054086,92607.0,92601.0,0.054089]
[1735616972267,0.054086,92607.0,92601.0,0.034089]
[1735616972673,0.056086,92607.0,92601.0,0.035089]
[1735616973664,0.056086,92607.0,92602.0,1.5]
[1735616974567,0.056086,92607.0,92602.0,1.8608]
[1735616975170,0.055086,92607.0,92602.0,1.8608]
[1735616975471,0.055086,92607.0,92602.0,1.914888]
[1735616975667,0.054086,92607.0,92602.0,1.915888]
[1735616975872,0.055086,92607.0,92602.0,1.915888]
[1735616976470,0.055086,92607.0,92602.0,1.8618]
[1735616976673,0.055086,92607.0,92603.0,0.054088]
[1735616977279,0.055086,92607.0,92603.0,0.034088]
[1735616978279,0.055086,92607.0,92603.0,0.035088]
[1735616982483,0.055086,92607.0,92603.0,0.001]
[1735616982883,0.055086,92607.0,92603.0,0.055088]
[1735616987179,0.055086,92607.0,92603.0,0.054088]
[1735616987390,0.055086,92607.0,92603.0,0.035088]
[1735616987787,0.055086,92607.0,92602.0,0.00056]
[1735616987788,0.414887,92604.0,92602.0,0.00056]
[1735616987998,0.414887,92604.0,92594.0,0.3608]
[1735616987999,0.054093,92595.0,92594.0,0.3608]
[1735616988488,0.054093,92595.0,92594.0,1.8608]
[1735616988687,0.414893,92595.0,92594.0,1.5]
[1735616988881,0.3608,92595.0,92582.0,0.3608]
[1735616989078,0.054097,92587.0,92582.0,0.3608]
[1735616989280,0.054097,92587.0,92584.0,1.5]
[1735616990392,0.0331,92593.0,92584.0,1.5]
[1735616990586,0.054095,92592.0,92584.0,1.5]
[1735616990788,0.054095,92591.0,92584.0,1.5]
[1735616992087,0.001,92587.0,92584.0,1.5]
[1735616992285,0.001,92587.0,92584.0,1.48]
[1735616992576,0.054095,92591.0,92584.0,1.48]
[1735616992776,0.056095,92591.0,92584.0,1.48]
[1735616993482,0.002,92587.0,92584.0,1.48]
[1735616995284,0.056095,92591.0,92584.0,1.48]
[1735616995892,0.002,92587.0,92584.0,1.48]
[1735616996289,0.002,92587.0,92585.0,0.054098]
[1735616996494,0.054095,92591.0,92585.0,0.054098]
[1735616996788,0.056095,92591.0,92585.0,0.054098]
[1735616996996,0.056095,92591.0,92586.0,1.5]
[1735616997287,0.056095,92591.0,92586.0,1.48]
[1735616997990,0.054097,92588.0,92586.0,1.48]
[1735616998694,0.002,92587.0,92586.0,1.48]
[1735616999193,0.002,92587.0,92582.0,0.3608]
[1735616999194,0.054098,92586.0,92582.0,0.3608]
[1735616999388,0.0541,92583.0,92582.0,0.3608]
[1735616999589,0.0541,92583.0,92582.0,1.8608]
[1735616999984,0.0541,92583.0,92582.0,0.3608]
[1735617000392,0.0541,92583.0,92582.0,1.8608]
[1735617000691,0.002,92587.0,92582.0,1.8608]
[1735617001396,0.00290441,92594.0,92582.0,1.8608]
[1735617001984,0.002,92583.0,92582.0,1.8608]
[1735617002385,0.002,92583.0,92582.0,0.3408]
[1735617002784,0.002,92583.0,92582.0,1.8408]
[1735617002991,0.054099,92584.0,92582.0,1.8408]
[1735617003192,0.054099,92584.0,92582.0,0.3408]
[1735617003395,0.054107,92570.0,92563.0,0.00162031]
[1735617003598,0.05411,92567.0,92565.0,0.3608]
[1735617003994,0.05411,92565.0,92564.0,1.50056]
[1735617004195,0.3608,92569.0,92550.0,0.19451427]
[1735617004494,0.3608,92559.0,92550.0,0.19451427]
[1735617004796,0.414914,92559.0,92551.0,1.5]
[1735617005186,0.3608,92559.0,92551.0,1.5]
[1735617005897,0.3608,92559.0,92551.0,0.009]
[1735617006692,0.3608,92559.0,92552.0,0.054117]
[1735617006884,0.3608,92559.0,92557.0,0.054115]
[1735617007085,0.13211354,92568.0,92559.0,0.054113]
[1735617007289,0.13211354,92568.0,92560.0,0.0327]
[1735617007499,0.13211354,92568.0,92562.0,0.054111]
[1735617007695,0.13211354,92568.0,92560.0,0.0327]
[1735617007895,0.13211354,92568.0,92566.0,0.054109]
[1735617008090,0.13211354,92568.0,92567.0,0.0316]
[1735617008397,0.48572,92578.0,92568.0,0.054108]
[1735617008590,0.48472,92578.0,92568.0,0.054108]
[1735617008791,0.48472,92578.0,92569.0,0.054108]
[1735617010801,0.48472,92578.0,92571.0,1.5]
[1735617011192,0.50526324,92578.0,92571.0,1.554107]
[1735617011389,0.48472,92578.0,92573.0,0.054105]
[1735617013101,0.06577853,92579.0,92573.0,0.054105]
[1735617015305,0.06577853,92579.0,92573.0,0.059105]
[1735617016596,0.3608,92589.0,92573.0,0.007]
[1735617016902,0.054097,92589.0,92583.0,0.054099]
[1735617018201,0.054097,92589.0,92584.0,1.5]
[1735617018804,0.054097,92588.0,92584.0,1.5]
[1735617022214,0.054097,92588.0,92584.0,1.48]
[1735617027205,0.054097,92588.0,92570.0,0.11252493]
[1735617027206,0.3608,92586.0,92567.0,0.085708]
[1735617027509,0.0324,92585.0,92567.0,0.0316]
[1735617027704,0.054101,92581.0,92573.0,1.5]
[1735617027915,0.0324,92585.0,92573.0,1.5]
[1735617028114,0.3608,92576.0,92563.0,0.3608]
[1735617028310,0.05411,92565.0,92563.0,0.3608]
[1735617028506,0.05411,92565.0,92552.0,0.054118]
[1735617028705,0.05411,92565.0,92564.0,1.50162043]
[1735617028910,0.0309,92575.0,92564.0,1.50162043]
[1735617029109,0.054109,92567.0,92564.0,1.50162043]
[1735617030311,0.054109,92567.0,92564.0,1.50362043]
[1735617030900,0.054109,92567.0,92564.0,1.50862043]
[1735617032211,0.0541,92582.0,92578.0,0.054102]
[1735617032407,0.054097,92588.0,92579.0,0.414902]
[1735617032713,0.054098,92587.0,92579.0,0.414902]
[1735617032913,0.3608,92589.0,92580.0,0.0313]
[1735617033116,0.054099,92585.0,92580.0,0.0313]
[1735617033613,0.0541,92582.0,92580.0,0.0313]
[1735617034119,0.054097,92588.0,92581.0,1.5]
[1735617034509,0.054097,92587.0,92581.0,1.5]
[1735617034812,0.3608,92589.0,92581.0,1.5]
[1735617035006,0.0541,92583.0,92581.0,1.5]
[1735617035208,0.3608,92589.0,92581.0,1.5]
[1735617035409,0.3608,92589.0,92585.0,0.054098]
[1735617035608,0.054095,92591.0,92585.0,0.054098]
[1735617035918,0.09965665,92596.0,92585.0,0.054098]
[1735617035919,0.054096,92589.0,92585.0,0.054098]
[1735617037205,0.054096,92589.0,92585.0,0.034098]
[1735617039812,0.414896,92589.0,92585.0,0.034098]
[1735617041415,0.414896,92589.0,92581.0,1.50056]
[1735617041616,0.0541,92583.0,92579.0,0.11252493]